bitfinex/quotes_BTCUSD_20250723
["timestamp","ask_amount","ask_price","bid_price","bid_amount"]
[1753284964064,0.16094396,118320.0,118310.0,0.90695549]
[1753284964208,0.15249244,118320.0,118310.0,0.92325549]
[1753284964405,0.16094388,118320.0,118310.0,0.92325549]
[1753284964606,0.16939539,118320.0,118310.0,0.92636549]
[1753284965037,0.16094381,118320.0,118310.0,0.92636549]
[1753284965242,0.16094381,118320.0,118310.0,0.92837549]
[1753284965833,0.16939532,118320.0,118310.0,0.92837549]
[1753284966468,0.16094374,118320.0,118310.0,0.92837549]
[1753284966723,0.16939525,118320.0,118310.0,0.92837549]
[1753284967175,0.01690366,118310.0,118300.0,0.90826427]
[1753284967394,0.02694567,118310.0,118300.0,0.57671685]
[1753284967627,0.02694567,118310.0,118300.0,0.91671685]
[1753284967849,0.03539782,118310.0,118300.0,0.91671685]
[1753284968068,0.02694567,118310.0,118300.0,0.91671685]
[1753284968285,0.02694567,118310.0,118300.0,0.91872685]
[1753284968511,0.03539782,118310.0,118300.0,0.91972685]
[1753284968944,0.03539782,118310.0,118300.0,0.92072685]
[1753284969355,0.03539782,118310.0,118300.0,0.55662716]
[1753284969529,0.04385061,118310.0,118300.0,0.92072685]
[1753284969950,0.03539832,118310.0,118300.0,0.92072685]
[1753284970152,0.0269461,118310.0,118300.0,0.92072685]
[1753284971425,0.0269461,118310.0,118300.0,0.9459562]
[1753284971632,0.03539832,118310.0,118300.0,0.9459562]
[1753284972376,0.0269461,118310.0,118300.0,0.9459562]
[1753284972582,0.02694603,118310.0,118300.0,0.9459562]
[1753284972785,0.03539825,118310.0,118300.0,0.9459562]
[1753284973225,0.21308619,118310.0,118300.0,0.93750362]
[1753284973429,0.20444601,118310.0,118300.0,0.93750377]
[1753284973647,0.20444601,118310.0,118300.0,0.94595656]
[1753284973859,0.21289838,118310.0,118300.0,0.95440921]
[1753284974198,0.19599429,118310.0,118300.0,0.94595656]
[1753284974422,0.19527978,118310.0,118300.0,0.02722935]
[1753284974614,0.59535708,118310.0,118300.0,0.02722935]
[1753284975159,0.59535708,118310.0,118300.0,0.002]
[1753284975787,0.35156751,118300.0,118290.0,0.389933]
[1753284975970,0.88563751,118300.0,118290.0,0.389933]
[1753284976373,0.87003751,118300.0,118290.0,0.389933]
[1753284976808,0.87003751,118300.0,118290.0,0.60478987]
[1753284977266,0.87003751,118300.0,118290.0,0.60578987]
[1753284977453,0.87003751,118300.0,118290.0,0.60678987]
[1753284977659,0.87003751,118300.0,118290.0,0.59833636]
[1753284977862,0.73755751,118300.0,118290.0,0.60678987]
[1753284978085,0.87003751,118300.0,118290.0,0.61524331]
[1753284978295,0.87003751,118300.0,118290.0,0.59833636]
[1753284978528,0.86158464,118300.0,118290.0,0.397053]
[1753284978707,0.86158464,118300.0,118290.0,0.58202899]
[1753284979168,0.86158464,118300.0,118290.0,0.04885331]
[1753284979293,0.86158464,118300.0,118290.0,0.412953]
[1753284979719,0.86158464,118300.0,118290.0,0.38711969]
[1753284979922,0.86158464,118300.0,118290.0,0.57310319]
[1753284981432,0.86158464,118300.0,118290.0,0.58155684]
[1753284981639,0.86158464,118300.0,118290.0,0.59001028]
[1753284982088,0.86158464,118300.0,118290.0,0.59001042]
[1753284982288,0.86158464,118300.0,118290.0,0.58155684]
[1753284982941,0.86158464,118300.0,118290.0,0.59001035]
[1753284983618,0.86158464,118300.0,118290.0,0.22591066]
[1753284983829,0.70093566,118300.0,118290.0,0.59846372]
[1753284984009,0.70938867,118300.0,118290.0,0.59000993]
[1753284984230,0.57694867,118300.0,118290.0,0.58155656]
[1753284984431,0.70093566,118300.0,118290.0,0.59846329]
[1753284984632,0.70779817,118300.0,118290.0,0.59846329]
[1753284985239,0.3,118310.0,118300.0,0.19442008]
[1753284985441,0.00885108,118320.0,118310.0,0.19440365]
[1753284985642,0.15819331,118320.0,118310.0,0.59612334]
[1753284986688,0.14974216,118320.0,118310.0,0.59612334]
[1753284986981,0.16664482,118320.0,118310.0,0.59612334]
[1753284987459,0.16660482,118320.0,118310.0,0.59612334]
[1753284987663,0.15815338,118320.0,118310.0,0.59612334]
[1753284987877,0.1348,118320.0,118310.0,0.59612334]
[1753284988087,0.1358,118320.0,118310.0,0.59612334]
[1753284990036,0.1338,118320.0,118310.0,0.59612334]
[1753284990477,0.1348,118320.0,118310.0,0.59612334]
[1753284990699,0.1338,118320.0,118310.0,0.59612334]
[1753284992947,0.13376,118320.0,118310.0,0.59612334]
[1753284995256,0.14221101,118320.0,118310.0,0.59612334]
[1753284995475,0.13376,118320.0,118310.0,0.59612334]
[1753284996110,0.14221101,118320.0,118310.0,0.59612334]
[1753284996316,0.13376,118320.0,118310.0,0.59612334]
[1753284996468,0.14221101,118320.0,118310.0,0.59612334]
[1753284997302,0.13376,118320.0,118310.0,0.59612334]
[1753284998060,0.14221101,118320.0,118310.0,0.59612334]
[1753284998382,0.13376,118320.0,118310.0,0.59612334]
[1753284998885,0.14221101,118320.0,118310.0,0.59612334]
[1753284999019,0.13376,118320.0,118310.0,0.59612334]
[1753284999426,0.14221101,118320.0,118310.0,0.59612334]
[1753284999707,0.15066216,118320.0,118310.0,0.59612334]
[1753284999920,0.14221101,118320.0,118310.0,0.59612334]
[1753285000130,0.15066216,118320.0,118310.0,0.59612334]
[1753285000301,0.16756489,118320.0,118310.0,0.59612334]
[1753285000459,0.15911345,118320.0,118310.0,0.59612334]
[1753285000675,0.02675345,118320.0,118310.0,0.59612334]
[1753285000875,0.15062216,118320.0,118310.0,0.59612334]
[1753285001073,0.14217101,118320.0,118310.0,0.59612334]
[1753285001735,0.15062216,118320.0,118310.0,0.59612334]
[1753285002104,0.13372,118320.0,118310.0,0.59612334]
[1753285002706,0.0014,118320.0,118310.0,1.01516406]
[1753285002940,0.0014,118320.0,118310.0,1.37926375]
[1753285002941,0.13372,118320.0,118310.0,1.37926375]
[1753285003159,0.13372,118320.0,118310.0,1.30022303]
[1753285003418,0.13372,118320.0,118310.0,0.93612334]
[1753285004716,0.13372,118320.0,118310.0,1.30022303]
[1753285005395,0.0014,118320.0,118310.0,1.51702033]
[1753285006662,0.0004,118320.0,118310.0,1.51702033]
[1753285006881,0.0004,118320.0,118310.0,1.60449763]
[1753285007079,0.0004,118320.0,118310.0,1.60749763]
[1753285011636,0.0004,118320.0,118310.0,1.52302033]
[1753285014482,0.0004,118320.0,118310.0,1.39070033]
[1753285014725,0.0004,118320.0,118310.0,1.07432334]
[1753285014930,0.13419,118320.0,118310.0,0.92612334]
[1753285015159,0.13419,118320.0,118310.0,0.90450334]
[1753285015786,0.13419,118320.0,118310.0,0.92307334]
[1753285016435,0.13419,118320.0,118310.0,0.92513334]
[1753285017488,0.19310793,118320.0,118310.0,0.56450334]
[1753285018059,0.20155951,118320.0,118310.0,0.56450341]
[1753285018246,0.37059321,118320.0,118310.0,0.56450348]
[1753285018437,0.19310843,118320.0,118310.0,0.57295542]
[1753285018678,0.59310843,118320.0,118310.0,0.57540729]
[1753285018879,0.58465685,118320.0,118310.0,0.57740729]
[1753285019085,0.59310836,118320.0,118310.0,0.57940729]
[1753285019493,0.58465685,118320.0,118310.0,0.57940729]
[1753285019751,0.59310843,118320.0,118310.0,0.57940729]
[1753285020153,0.58465685,118320.0,118310.0,0.57940729]
[1753285020311,0.59310786,118320.0,118310.0,0.57940729]
[1753285020746,0.55864108,118320.0,118310.0,0.57940729]
[1753285021065,0.55864101,118320.0,118310.0,0.57940729]
[1753285021442,0.41799,118320.0,118310.0,0.57940729]
[1753285021650,0.55109209,118320.0,118310.0,0.58259729]
[1753285021844,0.54264101,118320.0,118310.0,0.58259729]
[1753285022224,0.55109216,118320.0,118310.0,0.58259729]
[1753285022855,0.55109209,118320.0,118310.0,0.58259729]
[1753285023067,0.54264101,118320.0,118310.0,0.58259729]
[1753285023689,0.53419,118320.0,118310.0,0.58259729]
[1753285023894,0.54264101,118320.0,118310.0,0.58259729]
[1753285024100,0.53419,118320.0,118310.0,0.58259729]
[1753285024316,0.53415,118320.0,118310.0,0.59965729]
[1753285024519,0.54260101,118320.0,118310.0,0.59965729]
[1753285024734,0.55105216,118320.0,118310.0,0.59965729]
[1753285024937,0.15105216,118320.0,118310.0,0.59965729]
[1753285025309,0.14260101,118320.0,118310.0,0.59965729]
[1753285027865,0.13415,118320.0,118310.0,0.59965729]
[1753285028080,0.14260115,118320.0,118310.0,0.59965729]
[1753285028275,0.19127778,118320.0,118310.0,0.59965729]
[1753285028509,0.1510523,118320.0,118310.0,0.59965729]
[1753285029550,0.14260108,118320.0,118310.0,0.59965729]
[1753285029722,0.13415,118320.0,118310.0,0.59965729]
[1753285030137,0.14260108,118320.0,118310.0,0.59965729]
[1753285030540,0.13415,118320.0,118310.0,0.59965729]
[1753285030955,0.14260115,118320.0,118310.0,0.59965729]
[1753285031399,0.35288859,118320.0,118310.0,0.1814997]
[1753285031613,0.58701352,118320.0,118310.0,0.004]
[1753285032226,0.35899963,118310.0,118300.0,0.17751466]
[1753285032429,0.36058963,118310.0,118300.0,0.54161435]
[1753285032650,0.76058963,118310.0,118300.0,0.54161435]
[1753285033126,0.58439437,118310.0,118300.0,0.56697266]
[1753285033347,0.76189372,118310.0,118300.0,0.55006729]
[1753285033575,0.74498963,118310.0,118300.0,0.54161435]
[1753285033841,0.74498963,118310.0,118300.0,0.55006729]
[1753285034303,0.74498963,118310.0,118300.0,0.55852016]
[1753285034485,0.74498963,118310.0,118300.0,0.56697295]
[1753285034723,0.74498963,118310.0,118300.0,0.54161435]
[1753285034938,0.74498963,118310.0,118300.0,0.54261435]
[1753285035953,0.74498963,118310.0,118300.0,0.37355277]
[1753285036215,0.99605693,118310.0,118300.0,0.001]
[1753285036500,0.96015662,118310.0,118300.0,0.001]
[1753285037048,0.59605693,118310.0,118300.0,0.002]
[1753285037302,0.72813693,118310.0,118300.0,0.002]
[1753285037592,0.72813693,118310.0,118300.0,0.001]
[1753285037856,0.50993673,118290.0,118280.0,0.55024594]
[1753285038108,0.72808403,118290.0,118280.0,0.55870024]
[1753285038369,0.72808403,118290.0,118280.0,0.55024594]
[1753285039194,0.71963066,118290.0,118280.0,0.37270121]
[1753285039451,0.87162066,118290.0,118280.0,0.00014701]
[1753285039701,0.92724614,118290.0,118280.0,0.00014701]
[1753285039923,0.88702066,118290.0,118280.0,0.00014701]
[1753285040825,0.88603066,118290.0,118280.0,0.00014701]
[1753285041760,0.87063066,118290.0,118280.0,0.00014701]
[1753285044281,0.87063066,118290.0,118280.0,0.17769174]
[1753285044600,0.87063066,118290.0,118280.0,0.1692373]
[1753285045135,0.87063066,118290.0,118280.0,0.17769181]
[1753285045350,0.87063066,118290.0,118280.0,0.1692373]
[1753285045564,0.87063066,118290.0,118280.0,0.17769181]
[1753285045771,0.87063066,118290.0,118280.0,0.18614625]
[1753285046223,1.25112035,118290.0,118280.0,0.00014701]
[1753285048076,1.25212035,118290.0,118280.0,0.00014701]
[1753285048298,1.25512035,118290.0,118280.0,0.00014701]
[1753285048955,1.59512035,118290.0,118280.0,0.00014701]
[1753285049202,1.61256937,118290.0,118280.0,0.00014701]
[1753285049417,1.66256937,118290.0,118280.0,0.00014701]
[1753285050242,0.35295852,118250.0,118240.0,0.57381847]
[1753285050464,0.48499852,118250.0,118240.0,0.57046139]
[1753285050676,0.47654251,118250.0,118240.0,0.57046139]
[1753285050892,0.47654251,118250.0,118240.0,0.57891847]
[1753285051312,0.47654251,118250.0,118240.0,0.58191847]
[1753285051517,0.47703184,118250.0,118240.0,0.58191847]
[1753285051936,0.47703184,118250.0,118240.0,0.58391847]
[1753285052560,0.16740157,118250.0,118240.0,0.60827541]
[1753285052778,0.31635438,118250.0,118240.0,0.61673228]
[1753285053469,0.45113141,118250.0,118240.0,0.61473228]
[1753285053678,0.85113141,118250.0,118240.0,0.61473228]
[1753285053880,0.85113141,118250.0,118240.0,0.61573228]
[1753285054520,0.85113134,118250.0,118240.0,0.61573228]
[1753285054730,0.7106349,118250.0,118240.0,0.61273228]
[1753285054944,0.8426749,118250.0,118240.0,0.61273228]
[1753285055195,0.8426749,118250.0,118240.0,0.61373228]
[1753285055406,0.4342186,118250.0,118240.0,0.61373228]
[1753285055581,0.44267504,118250.0,118240.0,0.61373228]
[1753285055780,0.4342186,118250.0,118240.0,0.61373228]
[1753285056423,0.44267497,118250.0,118240.0,0.61373228]
[1753285056881,0.4342186,118250.0,118240.0,0.61373228]
[1753285057090,0.43421852,118250.0,118240.0,0.61373228]
[1753285057465,0.44267482,118250.0,118240.0,0.61373228]
[1753285057670,0.43421852,118250.0,118240.0,0.61373228]
[1753285057872,0.26726636,118250.0,118240.0,0.97783197]
[1753285058285,0.26726636,118250.0,118240.0,0.98992409]
[1753285059448,0.26726636,118250.0,118240.0,0.97783197]
[1753285060763,0.28417852,118250.0,118240.0,0.24963259]
[1753285060975,0.29263482,118250.0,118240.0,0.61373228]
[1753285061744,0.28417852,118250.0,118240.0,0.61373228]
[1753285061943,0.27572237,118250.0,118240.0,0.61373228]
[1753285062647,0.29263475,118250.0,118240.0,0.61373228]
[1753285063213,0.28417845,118250.0,118240.0,0.61373228]
[1753285063431,0.27572237,118250.0,118240.0,0.61373228]
[1753285063840,0.26726636,118250.0,118240.0,0.61373228]
[1753285064061,0.13526636,118250.0,118240.0,0.61373228]
[1753285064294,0.13526636,118250.0,118240.0,0.97783197]
[1753285064525,0.13526636,118250.0,118240.0,0.61373228]
[1753285064526,0.26722636,118250.0,118240.0,0.61373228]
[1753285066025,0.13526636,118250.0,118240.0,1.05859243]
[1753285066200,0.13526636,118250.0,118240.0,0.97783197]
[1753285066371,0.26722636,118250.0,118240.0,0.97783197]
[1753285067078,0.13526636,118250.0,118240.0,0.97783197]
[1753285067281,0.13526636,118250.0,118240.0,1.07975829]
[1753285067495,0.26718636,118250.0,118240.0,1.14697062]
[1753285068686,0.26718636,118250.0,118240.0,1.07975829]
[1753285069875,0.26718636,118250.0,118240.0,1.41975829]
[1753285070086,0.13526636,118250.0,118240.0,1.41975829]
[1753285070295,0.26718636,118250.0,118240.0,1.41975829]
[1753285071548,0.13526636,118250.0,118240.0,1.41975829]
[1753285071762,0.26718636,118250.0,118240.0,1.50423559]
[1753285073738,0.26714636,118250.0,118240.0,1.50423559]
[1753285073963,0.00048933,118250.0,118240.0,1.63611559]
[1753285074200,1e-08,118250.0,118240.0,1.63611559]
[1753285075125,1e-08,118250.0,118240.0,1.63511559]
[1753285075555,1e-08,118250.0,118240.0,1.63711559]
[1753285075974,1e-08,118250.0,118240.0,1.63611559]
[1753285076180,1e-08,118250.0,118240.0,1.63911559]
[1753285082251,1e-08,118250.0,118240.0,2.00321528]
[1753285082685,1e-08,118250.0,118240.0,1.63911559]
[1753285093785,1e-08,118250.0,118240.0,0.91091621]
[1753285094001,1e-08,118250.0,118240.0,1.63911559]
[1753285099410,1e-08,118250.0,118240.0,1.50723559]
[1753285099630,1e-08,118250.0,118240.0,2.05301528]
[1753285100146,1e-08,118250.0,118240.0,2.07841728]
[1753285100362,1e-08,118250.0,118240.0,2.12841728]
[1753285100786,0.3308,118300.0,118290.0,0.19443651]
[1753285101006,0.33253678,118300.0,118290.0,0.5585362]
[1753285101229,0.03253678,118300.0,118290.0,0.6430135]
[1753285102042,0.03453678,118300.0,118290.0,0.6430135]
[1753285102258,0.03553678,118300.0,118290.0,0.6430135]
[1753285103370,0.03553678,118300.0,118290.0,0.5585362]
[1753285104250,0.03652678,118300.0,118290.0,0.5585362]
[1753285104691,0.03553678,118300.0,118290.0,0.5585362]
[1753285104909,0.02013678,118300.0,118290.0,0.5585362]
[1753285105527,0.02013678,118300.0,118290.0,0.58436473]
[1753285106506,0.00473678,118300.0,118290.0,0.67418203]
[1753285106725,0.00314678,118300.0,118290.0,0.77405933]
[1753285107444,0.00014678,118300.0,118290.0,1.27810835]
[1753285107683,0.00314678,118300.0,118290.0,1.27810835]
[1753285108195,0.00214678,118300.0,118290.0,1.28652234]
[1753285108431,0.00214678,118300.0,118290.0,1.27810835]
[1753285109343,0.00014678,118300.0,118290.0,1.27810835]
[1753285109597,0.00114678,118300.0,118290.0,1.27810835]
[1753285110259,0.00114678,118300.0,118290.0,1.28663676]
[1753285112886,0.00114678,118300.0,118290.0,0.92253707]
[1753285113100,0.00114678,118300.0,118290.0,1.28663676]
[1753285113797,0.0004,118320.0,118290.0,1.28663676]
[1753285113983,0.0004,118320.0,118310.0,0.93790303]
[1753285114216,0.0004,118320.0,118310.0,1.12398763]
[1753285114432,0.0004,118320.0,118310.0,1.12719763]
[1753285115089,0.0024,118320.0,118310.0,1.12719763]
[1753285115726,0.0054,118320.0,118310.0,1.12719763]
[1753285115987,0.0024,118320.0,118310.0,1.12719763]
[1753285116201,0.0004,118320.0,118310.0,0.39899825]
[1753285116448,0.0004,118320.0,118310.0,0.76309794]
[1753285116667,0.0004,118320.0,118310.0,0.74809794]
[1753285119985,0.0004,118320.0,118310.0,0.66362064]
[1753285121098,0.0004,118320.0,118310.0,0.29952095]
[1753285121318,0.0004,118320.0,118310.0,0.66362064]
[1753285125563,0.04919237,118320.0,118310.0,0.18595178]
[1753285125778,0.05018237,118320.0,118310.0,0.20285566]
[1753285126004,0.2445701,118320.0,118310.0,0.19440379]
[1753285126205,0.23611902,118320.0,118310.0,0.1774997]
[1753285126415,0.23611902,118320.0,118310.0,0.194404]
[1753285126621,0.0501823,118320.0,118310.0,0.20285587]
[1753285126836,0.05863381,118320.0,118310.0,0.56695556]
[1753285127037,0.06708532,118320.0,118310.0,0.20285587]
[1753285127660,0.05863381,118320.0,118310.0,0.20285587]
[1753285127882,0.06708532,118320.0,118310.0,0.20285587]
[1753285128527,0.05863381,118320.0,118310.0,0.20285587]
[1753285128954,0.05863374,118320.0,118310.0,0.20285587]
[1753285129215,0.0501823,118320.0,118310.0,0.20285587]
[1753285129430,0.05863367,118320.0,118310.0,0.20285587]
[1753285129740,0.06708518,118320.0,118310.0,0.20285587]
[1753285129951,0.05863403,118320.0,118310.0,0.20285587]
[1753285130392,0.22766759,118320.0,118310.0,0.194404]
[1753285131049,0.05863446,118320.0,118310.0,0.20285587]
[1753285131262,0.23611924,118320.0,118310.0,0.20285601]
[1753285131474,0.23611924,118320.0,118310.0,0.18595192]
[1753285131679,0.23611924,118320.0,118310.0,0.20285615]
[1753285131894,0.22580351,118310.0,118300.0,0.17750185]
[1753285132117,0.35978401,118310.0,118300.0,0.16904891]
[1753285132325,0.03270537,118300.0,118290.0,0.58436445]
[1753285132536,0.03429537,118300.0,118290.0,0.58436445]
[1753285132747,0.02584258,118300.0,118290.0,0.58436445]
[1753285134532,0.00159,118300.0,118290.0,0.60540445]
[1753285134964,0.00159,118300.0,118290.0,0.60640445]
[1753285135407,0.00159,118300.0,118290.0,0.60740445]
[1753285136308,0.17225553,118310.0,118300.0,0.19442008]
[1753285136510,0.17384553,118310.0,118300.0,0.55851977]
[1753285136755,0.01709,118310.0,118300.0,0.56364977]
[1753285136967,0.1314,118310.0,118300.0,0.57994977]
[1753285137197,0.0165,118320.0,118310.0,0.19440365]
[1753285137450,0.13339,118320.0,118310.0,0.65453335]
[1753285137644,0.13339,118320.0,118310.0,0.57993334]
[1753285138466,0.13439,118320.0,118310.0,0.57993334]
[1753285138874,0.13539,118320.0,118310.0,0.57993334]
[1753285139686,0.13539,118320.0,118310.0,0.21583365]
[1753285139865,0.13539,118320.0,118310.0,0.57993334]
[1753285140262,0.00399,118320.0,118310.0,0.65652335]
[1753285140468,0.13376,118320.0,118310.0,0.59583334]
[1753285141491,0.13376,118320.0,118310.0,0.68031064]
[1753285141917,0.0024,118320.0,118310.0,1.02031064]
[1753285142122,0.13376,118320.0,118310.0,1.02031064]
[1753285142339,0.13376,118320.0,118310.0,0.65621095]
[1753285142719,0.13376,118320.0,118310.0,1.02031064]
[1753285142930,0.0024,118320.0,118310.0,1.02031064]
[1753285143382,0.13376,118320.0,118310.0,1.02031064]
[1753285144205,0.13376,118320.0,118310.0,1.02873043]
[1753285144416,0.13376,118320.0,118310.0,1.02031064]
[1753285144884,0.13535,118320.0,118310.0,0.91993341]
[1753285145100,0.13535,118320.0,118310.0,0.91208528]
[1753285145310,0.15225223,118320.0,118310.0,0.92718549]
[1753285145527,0.1607036,118320.0,118310.0,0.92718549]
[1753285145794,0.16915504,118320.0,118310.0,0.92519549]
[1753285146019,0.0169038,118310.0,118300.0,0.89851977]
[1753285146277,0.04344588,118310.0,118300.0,0.89006727]
[1753285146493,0.04344588,118310.0,118300.0,0.90697257]
[1753285146956,0.02654172,118310.0,118300.0,0.90697257]
[1753285147585,0.00159,118310.0,118300.0,0.90697257]
[1753285147800,0.00159,118310.0,118300.0,0.91011257]
[1753285148004,0.13291,118310.0,118300.0,0.91011257]
[1753285148209,0.14136172,118310.0,118300.0,0.91011257]
[1753285149360,0.13291,118310.0,118300.0,0.91011257]
[1753285149596,0.14136187,118310.0,118300.0,0.91011257]
[1753285149826,0.15826596,118310.0,118300.0,0.91011257]
[1753285150045,0.14981381,118310.0,118300.0,0.91011257]
[1753285150273,0.15826589,118310.0,118300.0,0.91011257]
[1753285150527,0.18251804,118310.0,118300.0,0.91011257]
[1753285150761,0.17406582,118310.0,118300.0,0.90697257]
[1753285151014,0.36001774,118310.0,118300.0,0.56697264]
[1753285151272,0.19097033,118310.0,118300.0,0.57542522]
[1753285152239,0.36001774,118310.0,118300.0,0.57542522]
[1753285152454,0.18251804,118310.0,118300.0,0.57542522]
[1753285152663,0.17406582,118310.0,118300.0,0.57542522]
[1753285152880,0.18251804,118310.0,118300.0,0.57542522]
[1753285153101,0.19097033,118310.0,118300.0,0.57542522]
[1753285153342,0.3515663,118310.0,118300.0,0.18596765]
[1753285153565,0.03320566,118300.0,118290.0,0.58436459]
[1753285153808,0.03479566,118300.0,118290.0,0.58436459]
[1753285154068,0.02634272,118300.0,118290.0,0.58436459]
[1753285154305,0.15762258,118300.0,118290.0,0.58436459]
[1753285154531,0.14977509,118300.0,118290.0,0.58949459]
[1753285154758,0.16668054,118300.0,118290.0,0.58750459]
[1753285154993,0.16668054,118300.0,118290.0,0.58850459]
[1753285155265,0.15822767,118300.0,118290.0,0.58950459]
[1753285155493,0.16668046,118300.0,118290.0,0.2254049]
[1753285155707,0.16668046,118300.0,118290.0,0.58950459]
[1753285156604,0.19093347,118300.0,118290.0,0.58636459]
[1753285156813,0.18248046,118300.0,118290.0,0.58636459]
[1753285157021,0.1909334,118300.0,118290.0,0.58636459]
[1753285157253,0.18248046,118300.0,118290.0,0.58636459]
[1753285157456,0.1909334,118300.0,118290.0,0.58636459]
[1753285157865,0.18248046,118300.0,118290.0,0.58636459]
[1753285158074,0.1909334,118300.0,118290.0,0.58636459]
[1753285158901,0.17402767,118300.0,118290.0,0.58636459]
[1753285159108,0.19105199,118300.0,118290.0,0.58636459]
[1753285159317,0.1825992,118300.0,118290.0,0.58636459]
[1753285159524,0.16569397,118300.0,118290.0,0.58636459]
[1753285159961,0.18259927,118300.0,118290.0,0.58636459]
[1753285160182,0.18259927,118300.0,118290.0,0.58950459]
[1753285160397,0.36011448,118300.0,118290.0,0.17952964]
[1753285160609,0.20764264,118300.0,118290.0,0.19643644]
[1753285160826,0.20665264,118300.0,118290.0,0.19643644]
[1753285161062,0.21510565,118300.0,118290.0,0.19643644]
[1753285161259,0.21510565,118300.0,118290.0,0.19443644]
[1753285161510,0.19105264,118300.0,118290.0,0.19443644]
[1753285162136,0.1825997,118300.0,118290.0,0.19443644]
[1753285162354,0.16557537,118300.0,118290.0,0.19443644]
[1753285162801,0.15712251,118300.0,118290.0,0.55853613]
[1753285163011,0.16557516,118300.0,118290.0,0.55853613]
[1753285163225,0.15712251,118300.0,118290.0,0.56167613]
[1753285163444,0.1740281,118300.0,118290.0,0.56167613]
[1753285163920,0.16557516,118300.0,118290.0,0.56167613]
[1753285164418,0.17402795,118300.0,118290.0,0.55853613]
[1753285164880,0.04274795,118300.0,118290.0,0.55853613]
[1753285165110,0.16553516,118300.0,118290.0,0.55853613]
[1753285165552,0.15708251,118300.0,118290.0,0.55853613]
[1753285165777,0.16553523,118300.0,118290.0,0.55853613]
[1753285166211,0.17398788,118300.0,118290.0,0.55853613]
[1753285166423,0.15708251,118300.0,118290.0,0.55853613]
[1753285166861,0.16553516,118300.0,118290.0,0.55853613]
[1753285167071,0.15708251,118300.0,118290.0,0.55853613]
[1753285167523,0.14863,118300.0,118290.0,0.55853613]
[1753285167736,0.15708251,118300.0,118290.0,0.56147613]
[1753285168187,0.00159,118300.0,118290.0,0.56147613]
[1753285168369,0.13283,118300.0,118290.0,0.56147613]
[1753285168579,0.13283,118300.0,118290.0,0.56354613]
[1753285169122,0.15,118310.0,118300.0,0.19442008]
[1753285169242,0.51873845,118320.0,118310.0,0.18595178]
[1753285169449,0.00845194,118310.0,118300.0,0.55300648]
[1753285169664,0.20304157,118310.0,118300.0,0.18596758]
[1753285169872,0.20304157,118310.0,118300.0,0.19442037]
[1753285170111,0.19558963,118310.0,118300.0,0.19442037]
[1753285170325,0.19558963,118310.0,118300.0,0.20287309]
[1753285170540,0.03499451,118310.0,118300.0,0.20287309]
[1753285170752,0.23028998,118310.0,118300.0,0.19442037]
[1753285170955,0.22314213,118310.0,118300.0,0.20287295]
[1753285171166,0.22215213,118310.0,118300.0,0.20287295]
[1753285171425,0.22215213,118310.0,118300.0,0.19442037]
[1753285171641,0.22215213,118310.0,118300.0,0.20287309]
[1753285171866,0.22215213,118310.0,118300.0,0.21132574]
[1753285172497,0.26237761,118310.0,118300.0,0.19442037]
[1753285172724,0.22215213,118310.0,118300.0,0.19442037]
[1753285173182,0.22215213,118310.0,118300.0,0.20287309]
[1753285173617,0.22215213,118310.0,118300.0,0.21132574]
[1753285174062,0.22215213,118310.0,118300.0,0.19442037]
[1753285174288,0.21369998,118310.0,118300.0,0.1690617]
[1753285174510,0.21369998,118310.0,118300.0,0.17751471]
[1753285174937,0.21369998,118310.0,118300.0,0.19442073]
[1753285175171,0.21369998,118310.0,118300.0,0.21132625]
[1753285175375,0.21369998,118310.0,118300.0,0.21132575]
[1753285175575,0.22215235,118310.0,118300.0,0.19442052]
[1753285176290,0.37215235,118310.0,118300.0,0.20287324]
[1753285176508,0.36370013,118310.0,118300.0,0.17751471]
[1753285176744,0.37930013,118310.0,118300.0,0.18596758]
[1753285177074,0.20126715,118300.0,118290.0,0.18598315]
[1753285177282,0.44607277,118310.0,118300.0,0.17751478]
[1753285177482,0.57727277,118310.0,118300.0,0.18596779]
[1753285177658,0.97886277,118310.0,118300.0,0.18596779]
[1753285177861,0.97886277,118310.0,118300.0,0.19442073]
[1753285178029,0.97786277,118310.0,118300.0,0.19442073]
[1753285178228,0.97786277,118310.0,118300.0,0.20287352]
[1753285178441,0.97786277,118310.0,118300.0,0.19442073]
[1753285179043,0.18596722,118300.0,118290.0,0.55008291]
[1753285179263,0.03509538,118300.0,118290.0,0.19443651]
[1753285179485,0.03509516,118300.0,118290.0,0.5585362]
[1753285179693,0.02694774,118300.0,118290.0,0.5585362]
[1753285179913,0.01849502,118300.0,118290.0,0.5585362]
[1753285180113,0.02694767,118300.0,118290.0,0.5779762]
[1753285180532,0.01849502,118300.0,118290.0,0.5779762]
[1753285180951,0.02694774,118300.0,118290.0,0.5779762]
[1753285181369,0.01849502,118300.0,118290.0,0.5779762]
[1753285181582,0.02694774,118300.0,118290.0,0.5779762]
[1753285182001,0.01849502,118300.0,118290.0,0.5779762]
[1753285182189,0.02694774,118300.0,118290.0,0.5779762]
[1753285183026,0.03540053,118300.0,118290.0,0.5779762]
[1753285183235,0.01849502,118300.0,118290.0,0.5779762]
[1753285183448,0.14965502,118300.0,118290.0,0.5800462]
[1753285183897,0.00159,118300.0,118290.0,0.5800462]
[1753285184122,0.16710978,118310.0,118300.0,0.19442008]
[1753285184346,0.30672165,118310.0,118300.0,0.57441977]
[1753285184565,0.29826978,118310.0,118300.0,0.57942977]
[1753285184791,0.30672165,118310.0,118300.0,0.21533008]
[1753285185010,0.51026329,118310.0,118300.0,0.55006719]
[1753285185254,0.34121588,118310.0,118300.0,0.57542529]
[1753285185685,0.33276366,118310.0,118300.0,0.2113256]
[1753285185903,0.34121581,118310.0,118300.0,0.57836529]
[1753285186128,0.33276366,118310.0,118300.0,0.57836529]
[1753285186339,0.32621581,118310.0,118300.0,0.57836529]
[1753285186611,0.31776366,118310.0,118300.0,0.57836529]
[1753285186832,0.30931165,118310.0,118300.0,0.57836529]
[1753285187280,0.30931165,118310.0,118300.0,0.59486529]
[1753285187705,0.31776373,118310.0,118300.0,0.59486529]
[1753285188096,0.30931165,118310.0,118300.0,0.59486529]
[1753285188307,0.31776366,118310.0,118300.0,0.59486529]
[1753285188689,0.31776359,118310.0,118300.0,0.59486529]
[1753285189314,0.30085985,118310.0,118300.0,0.59693529]
[1753285189880,0.30772172,118310.0,118300.0,0.59693529]
[1753285190200,0.30872172,118310.0,118300.0,0.59693529]
[1753285190723,0.31717373,118310.0,118300.0,0.59693529]
[1753285191708,0.32562581,118310.0,118300.0,0.59693529]
[1753285191946,0.31717373,118310.0,118300.0,0.61333529]
[1753285192174,0.30026985,118310.0,118300.0,0.61333529]
[1753285192423,0.30026985,118310.0,118300.0,0.59693529]
[1753285192679,0.29181806,118310.0,118300.0,0.59693529]
[1753285193180,0.30026985,118310.0,118300.0,0.59693529]
[1753285193445,0.29181806,118310.0,118300.0,0.59693529]
[1753285193715,0.30026985,118310.0,118300.0,0.59693529]
[1753285193960,0.17756172,118310.0,118300.0,0.61243529]
[1753285194303,0.30018985,118310.0,118300.0,0.61283529]